fUST/lending_fUST_20240507
["ID","MTS","AMOUNT","RATE_DAILY","PERIOD"]
[326506026,1715031039523,-165.99571681,0.0001579,2]
[326506027,1715031039533,-167.173135,0.0001589,2]
[326506028,1715031039542,-153.0,0.00016041,2]
[326506029,1715031039554,-150.0,0.00016324,2]
[326506030,1715031039564,-189.22674349,0.00016335,2]
[326506031,1715031039574,-159.43785831,0.00016337,2]
[326506032,1715031039585,-159.43785831,0.00016337,2]
[326506033,1715031039595,-159.43785831,0.00016338,2]
[326506034,1715031039605,-165.99571681,0.00016338,2]
[326506035,1715031039615,-159.43785831,0.00016338,2]
[326506036,1715031039625,-442.30480109,0.00016436,2]
[326506037,1715031039635,-227.52273626,0.00016436,2]
[326506038,1715031039645,-283.87194505,0.00016436,2]
[326506039,1715031039655,-154.76784823,0.00016436,2]
[326506040,1715031039666,-1347.30375243,0.00016436,2]
[326506041,1715031039676,-183.9475463,0.00016436,2]
[326506042,1715031039686,-389.37748321,0.00016436,2]
[326506043,1715031039696,-2499.99649867,0.00016436,2]
[326506570,1715031047225,-0.0166253,0.00016297,2]
[326506572,1715031047238,-492.9833747,0.00016297,2]
[326506574,1715031047247,-5000.0,0.000163,2]
[326506576,1715031047256,-1026.7620254,0.00016437,2]
[326506578,1715031047266,-538.92800322,0.00016437,2]
[326506580,1715031047275,-576.19,0.00016438,2]
[326506582,1715031047284,-500.0,0.00016438,2]
[326506584,1715031047294,-493.66971667,0.00016438,2]
[326506586,1715031047304,-340.49031929,0.00016438,2]
[326506588,1715031047313,-582.1,0.00016438,2]
[326506590,1715031047323,-500.0,0.00016438,2]
[326506592,1715031047332,-271.36322383,0.00016438,2]
[326506594,1715031047342,-500.0,0.00016438,2]
[326506596,1715031047351,-500.0,0.00016438,2]
[326506597,1715031047360,-500.0,0.00016438,2]
[326506599,1715031047369,-500.0,0.00016438,2]
[326506601,1715031047378,-207.18737948,0.00016438,2]
[326506603,1715031047387,-500.0,0.00016438,2]
[326506605,1715031047396,-1585.78,0.00016438,2]
[326506607,1715031047406,-500.0,0.00016438,2]
[326506609,1715031047415,-500.0,0.00016438,2]
[326506611,1715031047425,-500.0,0.00016438,2]
[326506613,1715031047434,-500.0,0.00016438,2]
[326506615,1715031047443,-500.0,0.00016438,2]
[326506617,1715031047452,-500.0,0.00016438,2]
[326506619,1715031047461,-500.0,0.00016438,2]
[326506621,1715031047470,-500.0,0.00016438,2]
[326506623,1715031047480,-500.0,0.00016438,2]
[326506625,1715031047489,-500.0,0.00016438,2]
[326506627,1715031047498,-500.0,0.00016438,2]
[326506629,1715031047507,-500.0,0.00016438,2]
[326506631,1715031047516,-500.0,0.00016438,2]
[326506633,1715031047525,-2791.22,0.00016438,2]
[326506635,1715031047535,-500.0,0.00016438,2]
[326506637,1715031047544,-500.0,0.00016438,2]
[326506639,1715031047553,-1262.49,0.00016438,2]
[326506641,1715031047562,-500.0,0.00016438,2]
[326506643,1715031047572,-500.0,0.00016438,2]
[326506645,1715031047582,-500.0,0.00016438,2]
[326506647,1715031047591,-513.78,0.00016438,2]
[326506649,1715031047600,-500.0,0.00016438,2]
[326506651,1715031047610,-737.4,0.00016438,2]
[326506653,1715031047619,-500.0,0.00016438,2]
[326506655,1715031047628,-500.0,0.00016438,2]
[326506657,1715031047638,-500.0,0.00016438,2]
[326506659,1715031047647,-500.0,0.00016438,2]
[326506661,1715031047658,-500.0,0.00016438,2]
[326506663,1715031047668,-500.0,0.00016438,2]
[326506665,1715031047678,-1043.17,0.00016438,2]
[326506667,1715031047688,-600.37,0.00016438,2]
[326506669,1715031047697,-521.49441262,0.00016438,2]
[326506671,1715031047706,-1126.26,0.00016438,2]
[326506673,1715031047716,-500.0,0.00016438,2]
[326506675,1715031047725,-172.42034032,0.00016438,2]
[326506677,1715031047735,-500.0,0.00016438,2]
[326506679,1715031047744,-500.0,0.00016438,2]
[326506681,1715031047753,-858.31,0.00016438,2]
[326506683,1715031047762,-578.15,0.00016438,2]
[326506685,1715031047771,-527.99,0.00016438,2]
[326506687,1715031047782,-500.0,0.00016438,2]
[326506688,1715031047809,-500.0,0.00016438,2]
[326506690,1715031047852,-500.0,0.00016438,2]
[326506692,1715031047877,-500.0,0.00016438,2]
[326506694,1715031047907,-500.0,0.00016438,2]
[326506696,1715031047917,-1000.24,0.00016438,2]
[326506698,1715031047927,-500.0,0.00016438,2]
[326506700,1715031047936,-500.0,0.00016438,2]
[326506702,1715031047946,-500.0,0.00016438,2]
[326506704,1715031047955,-500.0,0.00016438,2]
[326506706,1715031047964,-604.43,0.00016438,2]
[326506708,1715031047974,-562.4596636,0.00016438,2]
[326506710,1715031047983,-624.5,0.00016438,2]
[326506712,1715031047994,-500.0,0.00016438,2]
[326506713,1715031048004,-500.0,0.00016438,2]
[326506715,1715031048013,-500.0,0.00016438,2]
[326506717,1715031048023,-500.0,0.00016438,2]
[326506719,1715031048032,-2259.8,0.00016438,2]
[326506721,1715031048042,-1690.18,0.00016438,2]
[326506723,1715031048052,-500.0,0.00016438,2]
[326506725,1715031048060,-1002.75,0.00016438,2]
[326506727,1715031048071,-151.0,0.00016438,2]
[326506729,1715031048080,-500.0,0.00016438,2]
[326506731,1715031048089,-630.28,0.00016438,2]
[326506733,1715031048098,-500.0,0.00016438,2]
[326506735,1715031048107,-500.0,0.00016438,2]
[326506737,1715031048116,-500.0,0.00016438,2]
[326506739,1715031048125,-500.0,0.00016438,2]
[326506741,1715031048135,-700.97,0.00016438,2]
[326506743,1715031048144,-500.0,0.00016438,2]
[326506745,1715031048154,-500.0,0.00016438,2]
[326506747,1715031048163,-500.0,0.00016438,2]
[326506750,1715031048172,-500.0,0.00016438,2]
[326506752,1715031048181,-500.0,0.00016438,2]
[326506754,1715031048191,-500.0,0.00016438,2]
[326506756,1715031048200,-600.90374255,0.00016438,2]
[326506759,1715031048209,-592.93,0.00016438,2]
[326506761,1715031048218,-500.0,0.00016438,2]
[326506763,1715031048227,-500.0,0.00016438,2]
[326506765,1715031048236,-2358.75,0.00016438,2]
[326506767,1715031048246,-500.0,0.00016438,2]
[326506769,1715031048255,-500.0,0.00016438,2]
[326506771,1715031048264,-500.0,0.00016438,2]
[326506773,1715031048273,-500.0,0.00016438,2]
[326506775,1715031048283,-500.0,0.00016438,2]
[326506777,1715031048292,-42680.16,0.00016438,2]
[326506779,1715031048301,-504.58,0.00016438,2]
[326506781,1715031048310,-2303.08,0.00016438,2]
[326506783,1715031048320,-500.0,0.00016438,2]
[326506785,1715031048329,-522.11092335,0.00016438,2]
[326506787,1715031048339,-5008.93,0.00016438,2]
[326506789,1715031048348,-500.0,0.00016438,2]
[326506791,1715031048358,-4038.52,0.00016438,2]
[326506793,1715031048367,-500.0,0.00016438,2]
[326506795,1715031048376,-573.23,0.00016438,2]
[326506797,1715031048385,-151.0,0.00016438,2]
[326506799,1715031048394,-151.0,0.00016438,2]
[326506801,1715031048403,-500.0,0.00016438,2]
[326506802,1715031048412,-1703.58,0.00016438,2]
[326506804,1715031048421,-500.0,0.00016438,2]
[326506806,1715031048453,-151.0,0.00016438,2]
[326506808,1715031048498,-500.0,0.00016438,2]
[326506810,1715031048508,-199.934294,0.00016438,2]
[326506812,1715031048518,-500.0,0.00016438,2]
[326506815,1715031048529,-500.0,0.00016438,2]
[326506817,1715031048539,-739.31,0.00016438,2]
[326506818,1715031048549,-4804.58,0.00016438,2]
[326506820,1715031048559,-2009.2,0.00016438,2]
[326506822,1715031048568,-151.0,0.00016438,2]
[326506824,1715031048578,-500.0,0.00016438,2]
[326506826,1715031048590,-733.93,0.00016438,2]
[326506828,1715031048600,-500.0,0.00016438,2]
[326506830,1715031048609,-500.0,0.00016438,2]
[326506832,1715031048618,-500.0,0.00016438,2]
[326506851,1715031048778,-500.0,0.00016438,2]
[326506853,1715031048789,-7807.93,0.00016438,2]
[326506855,1715031048799,-607.02,0.00016438,2]
[326506857,1715031048808,-500.0,0.00016438,2]
[326506859,1715031048818,-685.68,0.00016438,2]
[326506861,1715031048827,-151.0,0.00016438,2]
[326506863,1715031048837,-805.5,0.00016438,2]
[326506865,1715031048846,-648.48,0.00016438,2]
[326506867,1715031048855,-500.0,0.00016438,2]
[326506869,1715031048864,-1093.51,0.00016438,2]
[326506871,1715031048874,-619.94,0.00016438,2]
[326506873,1715031048883,-500.0,0.00016438,2]
[326506875,1715031048893,-822.02,0.00016438,2]
[326506877,1715031048903,-2274.88,0.00016438,2]
[326506879,1715031048913,-348.67782525,0.00016438,2]
[326506881,1715031048922,-500.0,0.00016438,2]
[326506883,1715031048931,-8067.29,0.00016438,2]
[326506885,1715031048940,-500.0,0.00016438,2]
[326506887,1715031048950,-8915.08,0.00016438,2]
[326506888,1715031048959,-3767.1,0.00016438,2]
[326506891,1715031048969,-160.59208406,0.00016438,2]
[326506893,1715031048978,-795.65,0.00016438,2]
[326506894,1715031048987,-500.0,0.00016438,2]
[326506896,1715031049001,-500.0,0.00016438,2]
[326506898,1715031049023,-500.0,0.00016438,2]
[326506901,1715031049077,-1053.97,0.00016438,2]
[326506903,1715031049087,-500.0,0.00016438,2]
[326506905,1715031049097,-500.0,0.00016438,2]
[326506907,1715031049107,-2932.25,0.00016438,2]
[326506909,1715031049117,-555.64164709,0.00016438,2]
[326506911,1715031049127,-4607.36,0.00016438,2]
[326506913,1715031049136,-877.62,0.00016438,2]
[326506915,1715031049146,-500.0,0.00016438,2]
[326506917,1715031049155,-805.25,0.00016438,2]
[326506919,1715031049164,-5842.39,0.00016438,2]
[326506921,1715031049174,-500.0,0.00016438,2]
[326506923,1715031049183,-500.0,0.00016438,2]
[326506925,1715031049192,-510.7,0.00016438,2]
[326506927,1715031049202,-570.27,0.00016438,2]
[326506929,1715031049211,-500.0,0.00016438,2]
[326506931,1715031049220,-907.0,0.00016438,2]
[326506933,1715031049231,-500.0,0.00016438,2]
[326506935,1715031049240,-500.0,0.00016438,2]
[326506937,1715031049250,-500.0,0.00016438,2]
[326506939,1715031049259,-583.45,0.00016438,2]
[326506941,1715031049269,-1063.84,0.00016438,2]
[326506943,1715031049279,-896.6,0.00016438,2]
[326506945,1715031049288,-500.0,0.00016438,2]
[326506947,1715031049298,-524.89,0.00016438,2]
[326506949,1715031049307,-1270.76,0.00016438,2]
[326506951,1715031049317,-625.5,0.00016438,2]
[326506953,1715031049326,-500.0,0.00016438,2]
[326506955,1715031049335,-500.0,0.00016438,2]
[326506957,1715031049345,-3894.82,0.00016438,2]
[326506959,1715031049354,-500.0,0.00016438,2]
[326506961,1715031049363,-500.0,0.00016438,2]
[326506963,1715031049372,-521.0,0.00016438,2]
[326506965,1715031049381,-500.0,0.00016438,2]
[326506967,1715031049390,-500.0,0.00016438,2]
[326506969,1715031049400,-1096.4,0.00016438,2]
[326506971,1715031049409,-500.0,0.00016438,2]
[326506973,1715031049418,-4417.07,0.00016438,2]
[326506975,1715031049433,-273.25764425,0.000165,2]
[326506977,1715031049442,-22506.94521463,0.00016612,5]
[326506979,1715031049451,-169.561186,0.00016612,2]
[326506981,1715031049460,-169.561186,0.00016612,2]
[326506983,1715031049470,-151.0,0.00016612,2]
[326506985,1715031049479,-234.710144,0.00016612,2]
[326506987,1715031049489,-151.0,0.00016612,2]
[326506989,1715031049499,-151.0,0.00016612,2]
[326506991,1715031049508,-151.0,0.00016612,2]
[326506993,1715031049518,-151.0,0.00016612,2]
[326506995,1715031049527,-195.202032,0.00016612,2]
[326506997,1715031049536,-195.202032,0.00016612,2]
[326506999,1715031049546,-195.202032,0.00016612,2]
[326507002,1715031049558,-195.202032,0.00016612,2]
[326507004,1715031049568,-151.0,0.00016612,2]
[326507006,1715031049578,-388.085676,0.00016612,2]
[326507008,1715031049587,-388.085676,0.00016612,2]
[326507010,1715031049597,-151.0,0.00016612,2]
[326507012,1715031049648,-53525.15236038,0.00016612,2]
[326507014,1715031049722,-304.51821753,0.00016612,2]
[326507016,1715031049734,-1725.32942209,0.00016612,2]
[326507018,1715031049744,-431.776654,0.00016685,2]
[326507020,1715031049753,-235.8939695,0.00016711,2]
[326507022,1715031049763,-576.19,0.00016712,2]
[326507024,1715031049772,-500.0,0.00016712,2]
[326507026,1715031049781,-582.1,0.00016712,2]
[326507028,1715031049791,-500.0,0.00016712,2]
[326507030,1715031049800,-500.0,0.00016712,2]
[326507032,1715031049811,-500.0,0.00016712,2]
[326507034,1715031049821,-500.0,0.00016712,2]
[326507036,1715031049830,-500.0,0.00016712,2]
[326507038,1715031049840,-500.0,0.00016712,2]
[326507040,1715031049849,-275.363037,0.00016712,2]
[326507042,1715031049858,-1585.78,0.00016712,2]
[326507044,1715031049867,-500.0,0.00016712,2]
[326507046,1715031049876,-500.0,0.00016712,2]
[326507048,1715031049885,-500.0,0.00016712,2]
[326507050,1715031049894,-500.0,0.00016712,2]
[326507052,1715031049907,-500.0,0.00016712,2]
[326507054,1715031049916,-500.0,0.00016712,2]
[326507055,1715031049926,-500.0,0.00016712,2]
[326507057,1715031049936,-500.0,0.00016712,2]
[326507059,1715031049945,-500.0,0.00016712,2]
[326507061,1715031049954,-500.0,0.00016712,2]
[326507063,1715031049964,-500.0,0.00016712,2]
[326507065,1715031049973,-500.0,0.00016712,2]
[326507067,1715031049983,-500.0,0.00016712,2]
[326507069,1715031049994,-2791.22,0.00016712,2]
[326507071,1715031050004,-500.0,0.00016712,2]
[326507073,1715031050013,-1262.49,0.00016712,2]
[326507075,1715031050022,-500.0,0.00016712,2]
[326507077,1715031050031,-500.0,0.00016712,2]
[326507079,1715031050043,-500.0,0.00016712,2]
[326507081,1715031050052,-500.0,0.00016712,2]
[326507083,1715031050060,-513.78,0.00016712,2]
[326507085,1715031050072,-500.0,0.00016712,2]
[326507087,1715031050080,-737.4,0.00016712,2]
[326507089,1715031050090,-151.0,0.00016712,2]
[326507091,1715031050099,-151.0,0.00016712,2]
[326507093,1715031050108,-303.56436866,0.00016712,2]
[326507100,1715031050171,-151.0,0.00016438,2]
[326507102,1715031050181,-196.43563134,0.00016712,2]
[326507104,1715031050190,-500.0,0.00016712,2]
[326507106,1715031050200,-500.0,0.00016712,2]
[326507108,1715031050210,-185.03953996,0.00016712,2]
[326507110,1715031050219,-500.0,0.00016712,2]
[326507112,1715031050229,-500.0,0.00016712,2]
[326507114,1715031050238,-1043.17,0.00016712,2]
[326507116,1715031050247,-600.37,0.00016712,2]
[326507118,1715031050256,-1126.26,0.00016712,2]
[326507120,1715031050266,-500.0,0.00016712,2]
[326507122,1715031050275,-500.0,0.00016712,2]
[326507124,1715031050285,-500.0,0.00016712,2]
[326507126,1715031050294,-858.31,0.00016712,2]
[326507128,1715031050303,-578.15,0.00016712,2]
[326507130,1715031050313,-527.99,0.00016712,2]
[326507132,1715031050323,-500.0,0.00016712,2]
[326507134,1715031050332,-500.0,0.00016712,2]
[326507136,1715031050341,-500.0,0.00016712,2]
[326507138,1715031050351,-1000.24,0.00016712,2]
[326507140,1715031050360,-500.0,0.00016712,2]
[326507142,1715031050370,-500.0,0.00016712,2]
[326507144,1715031050379,-500.0,0.00016712,2]
[326507146,1715031050390,-500.0,0.00016712,2]
[326507148,1715031050399,-500.0,0.00016712,2]
[326507150,1715031050408,-604.43,0.00016712,2]
[326507152,1715031050418,-500.0,0.00016712,2]
[326507154,1715031050428,-500.0,0.00016712,2]
[326507156,1715031050437,-624.5,0.00016712,2]
[326507158,1715031050446,-488.13510335,0.00016712,2]
[326507160,1715031050455,-159.75043607,0.00016712,2]
[326507162,1715031050465,-2259.8,0.00016712,2]
[326507164,1715031050474,-1690.18,0.00016712,2]
[326507166,1715031050483,-500.0,0.00016712,2]
[326507168,1715031050492,-1002.75,0.00016712,2]
[326507170,1715031050501,-151.0,0.00016712,2]
[326507172,1715031050511,-151.0,0.00016712,2]
[326507174,1715031050520,-500.0,0.00016712,2]
[326507176,1715031050530,-151.0,0.00016712,2]
[326507178,1715031050539,-301.585383,0.00016712,2]
[326507180,1715031050549,-630.28,0.00016712,2]
[326507182,1715031050564,-500.0,0.00016712,2]
[326507184,1715031050575,-500.0,0.00016712,2]
[326507187,1715031050584,-500.0,0.00016712,2]
[326507189,1715031050594,-500.0,0.00016712,2]
[326507191,1715031050604,-700.97,0.00016712,2]
[326507193,1715031050613,-500.0,0.00016712,2]
[326507195,1715031050622,-500.0,0.00016712,2]
[326507197,1715031050632,-500.0,0.00016712,2]
[326507199,1715031050641,-169.561186,0.00016712,2]
[326507201,1715031050650,-169.561186,0.00016712,2]
[326507203,1715031050659,-169.561186,0.00016712,2]
[326507205,1715031050668,-169.561186,0.00016712,2]
[326507206,1715031050677,-500.0,0.00016712,2]
[326507208,1715031050686,-500.0,0.00016712,2]
[326507210,1715031050695,-169.561186,0.00016712,2]
[326507212,1715031050704,-169.561186,0.00016712,2]
[326507215,1715031050713,-169.561186,0.00016712,2]
[326507217,1715031050723,-169.561186,0.00016712,2]
[326507218,1715031050752,-500.0,0.00016712,2]
[326507220,1715031050761,-592.93,0.00016712,2]
[326507222,1715031050771,-500.0,0.00016712,2]
[326507224,1715031050780,-470.22598917,0.00016712,2]
[326507227,1715031050793,-29.77401083,0.00016712,2]
[326507228,1715031050803,-684.37383292,0.00016712,2]
[326507231,1715031050814,-1674.37616708,0.00016712,2]
[326507233,1715031050824,-500.0,0.00016712,2]
[326507235,1715031050833,-500.0,0.00016712,2]
[326507237,1715031050842,-500.0,0.00016712,2]
[326507239,1715031050852,-500.0,0.00016712,2]
[326507241,1715031050861,-500.0,0.00016712,2]
[326507243,1715031050870,-7414.42383292,0.00016712,2]
[326507245,1715031050882,-746.779422,0.00016712,2]
[326510711,1715031091898,809.0804,0.000211,9]
[326511068,1715031176462,194.04988926,9.999e-05,2]
[326511076,1715031652844,19204.48972816,9.999e-05,2]
[326511077,1715031664334,364.30865917,9.999e-05,2]
[326511078,1715031670767,12476.16371599,9.999e-05,2]
[326511079,1715031684970,364.30865917,9.999e-05,2]
[326511080,1715031703380,166.19555516,9.999e-05,2]
[326511081,1715031718952,364.07310375,9.999e-05,2]
[326511082,1715031735014,364.30865917,9.999e-05,2]
[326511083,1715031752978,363.83754833,9.999e-05,2]
[326511084,1715031770952,188.91722914,9.999e-05,2]
[326511085,1715031878697,-154.70605849,0.000136,2]
[326511086,1715031928909,2439.32742164,0.00018,7]
[326511087,1715032183539,595.39656819,0.000207,10]
[326511174,1715032236108,-516.20767634,0.00015277,2]
[326511176,1715032236121,-1274.70376296,0.00015277,2]
[326511243,1715032242307,-18727.3885178,0.00015277,2]
[326511245,1715032242317,-212.734786,0.00015383,2]
[326511248,1715032242327,-597.688415,0.0001589,2]
[326511251,1715032242338,-154.561,0.00016324,2]
[326511253,1715032242348,-150.0,0.00016324,2]
[326511254,1715032242357,-5000.0,0.00016433,2]
[326511256,1715032242369,-193.25751705,0.00016434,2]
[326511257,1715032242380,-1132.52624908,0.00016434,2]
[326511261,1715032242390,-154.78330338,0.00016435,2]
[326511262,1715032242400,-470.68505052,0.00016436,2]
[326511264,1715032242410,-205.97228952,0.00016436,2]
[326511266,1715032242421,-242.63257134,0.00016436,2]
[326511268,1715032242435,-186.38755187,0.00016436,2]
[326511270,1715032242445,-303.67284012,0.00016436,2]
[326511272,1715032242455,-19998.31021304,0.00016436,2]
[326511274,1715032242465,-155.09257999,0.00016436,2]
[326511275,1715032242476,-1712.22652709,0.00016436,2]
[326511277,1715032242486,-574.45001192,0.00016436,2]
[326511279,1715032242496,-303.06342646,0.00016436,2]
[326511281,1715032242505,-301.48151811,0.00016436,2]
[326511282,1715032242515,-267.39463091,0.00016436,2]
[326511284,1715032242525,-155.44708054,0.00016436,2]
[326511286,1715032242535,-474.21464437,0.00016436,2]
[326511288,1715032242544,-185.81629862,0.00016436,2]
[326511290,1715032242555,-191.38112735,0.00016436,2]
[326511291,1715032242564,-1676.30195278,0.00016436,2]
[326511293,1715032242574,-9006.54923775,0.00016436,2]
[326511295,1715032242587,-1279.72643616,0.00016436,2]
[326511297,1715032242598,-2086.53808771,0.00016436,2]
[326511299,1715032242611,-3310.32587959,0.00016436,2]
[326511301,1715032242621,-155.27698082,0.00016437,2]
[326511303,1715032242631,-168.88983771,0.00016437,2]
[326511304,1715032242641,-2959.05870459,0.00016437,2]
[326511306,1715032242653,-1625.21397984,0.00016437,2]
[326511308,1715032242664,-675.95,0.00016438,2]
[326511310,1715032242674,-500.0,0.00016438,2]
[326511312,1715032242684,-500.0,0.00016438,2]
[326511313,1715032242694,-500.0,0.00016438,2]
[326511315,1715032242703,-249.3171869,0.00016438,2]
[326511317,1715032242714,-642.56,0.00016438,2]
[326511319,1715032242724,-500.0,0.00016438,2]
[326511321,1715032242733,-500.0,0.00016438,2]
[326511322,1715032242743,-500.0,0.00016438,2]
[326511324,1715032242753,-500.0,0.00016438,2]
[326511326,1715032242762,-500.0,0.00016438,2]
[326511328,1715032242772,-219.21186991,0.00016438,2]
[326511329,1715032242782,-500.0,0.00016438,2]
[326511330,1715032242791,-337.228,0.00016438,2]
[326511331,1715032242801,-413.13100696,0.00016438,2]
[326511332,1715032242821,-500.0,0.00016438,2]
[326511333,1715032242831,-503.02,0.00016438,2]
[326511334,1715032242841,-771.94,0.00016438,2]
[326511335,1715032242850,-500.0,0.00016438,2]
[326511336,1715032242860,-265.20688821,0.00016438,2]
[326511337,1715032242876,-234.79311179,0.00016438,2]
[326511338,1715032242886,-500.0,0.00016438,2]
[326511339,1715032242896,-554.07,0.00016438,2]
[326511340,1715032242906,-606.24,0.00016438,2]
[326511341,1715032242916,-500.0,0.00016438,2]
[326511342,1715032242925,-956.24,0.00016438,2]
[326511343,1715032242935,-525.81371058,0.00016438,2]
[326511344,1715032242945,-550.34,0.00016438,2]
[326511345,1715032242955,-500.0,0.00016438,2]
[326511346,1715032242965,-500.0,0.00016438,2]
[326511347,1715032242975,-500.0,0.00016438,2]
[326511348,1715032242984,-529.97,0.00016438,2]
[326511349,1715032242994,-414.04914499,0.00016438,2]
[326511350,1715032243004,-500.0,0.00016438,2]
[326511351,1715032243013,-500.0,0.00016438,2]
[326511352,1715032243023,-2558.61,0.00016438,2]
[326511353,1715032243032,-500.0,0.00016438,2]
[326511354,1715032243042,-500.0,0.00016438,2]
[326511355,1715032243051,-500.0,0.00016438,2]
[326511356,1715032243061,-840.05,0.00016438,2]
[326511357,1715032243070,-578.64,0.00016438,2]
[326511358,1715032243080,-500.0,0.00016438,2]
[326511359,1715032243089,-500.0,0.00016438,2]
[326511360,1715032243098,-500.0,0.00016438,2]
[326511361,1715032243107,-500.0,0.00016438,2]
[326511362,1715032243116,-2071.49,0.00016438,2]
[326511363,1715032243126,-500.0,0.00016438,2]
[326511364,1715032243135,-500.0,0.00016438,2]
[326511365,1715032243145,-919.19,0.00016438,2]
[326511366,1715032243153,-500.0,0.00016438,2]
[326511367,1715032243163,-500.0,0.00016438,2]
[326511368,1715032243172,-1010.06,0.00016438,2]
[326511369,1715032243181,-500.0,0.00016438,2]
[326511370,1715032243190,-511.94366589,0.00016438,2]
[326511371,1715032243199,-500.0,0.00016438,2]
[326511372,1715032243208,-500.0,0.00016438,2]
[326511373,1715032243217,-500.0,0.00016438,2]
[326511374,1715032243227,-500.0,0.00016438,2]
[326511375,1715032243236,-1032.41,0.00016438,2]
[326511376,1715032243245,-500.0,0.00016438,2]
[326511377,1715032243255,-533.59,0.00016438,2]
[326511378,1715032243264,-500.0,0.00016438,2]
[326511379,1715032243274,-500.0,0.00016438,2]
[326511380,1715032243282,-500.0,0.00016438,2]
[326511381,1715032243298,-500.0,0.00016438,2]
[326511382,1715032243308,-500.0,0.00016438,2]
[326511384,1715032243316,-500.0,0.00016438,2]
[326511385,1715032243326,-342.19126684,0.00016438,2]
[326511386,1715032243335,-528.17,0.00016438,2]
[326511387,1715032243344,-500.0,0.00016438,2]
[326511388,1715032243354,-599.43,0.00016438,2]
[326511389,1715032243363,-500.0,0.00016438,2]
[326511390,1715032243372,-859.24,0.00016438,2]
[326511391,1715032243383,-500.0,0.00016438,2]
[326511392,1715032243395,-787.77,0.00016438,2]
[326511393,1715032243406,-500.0,0.00016438,2]
[326511394,1715032243416,-500.0,0.00016438,2]
[326511395,1715032243425,-500.0,0.00016438,2]
[326511396,1715032243435,-500.0,0.00016438,2]
[326511397,1715032243445,-1019.51,0.00016438,2]
[326511398,1715032243454,-786.78,0.00016438,2]
[326511399,1715032243464,-500.0,0.00016438,2]
[326511400,1715032243474,-500.0,0.00016438,2]
[326511401,1715032243483,-500.0,0.00016438,2]
[326511402,1715032243493,-500.0,0.00016438,2]
[326511403,1715032243502,-916.89,0.00016438,2]
[326511404,1715032243511,-500.0,0.00016438,2]
[326511405,1715032243678,-624.79,0.00016438,2]
[326511406,1715032243688,-500.0,0.00016438,2]
[326511407,1715032243697,-861.14361997,0.00016438,2]
[326511408,1715032244038,-340.98349925,0.00016438,2]
[326511409,1715032244050,-402.65461014,0.00016438,2]
[326511410,1715032244064,-557.40827064,0.00016438,2]
[326511411,1715032244074,-500.0,0.00016438,2]
[326511412,1715032244084,-500.0,0.00016438,2]
[326511413,1715032244093,-3732.53,0.00016438,2]
[326511414,1715032244103,-1050.72,0.00016438,2]
[326511415,1715032244113,-40561.77,0.00016438,2]
[326511416,1715032244124,-3870.24,0.00016438,2]
[326511417,1715032244133,-543.52,0.00016438,2]
[326511418,1715032244144,-429.95090697,0.00016438,2]
[326511419,1715032244153,-3527.52,0.00016438,2]
[326511420,1715032244163,-500.0,0.00016438,2]
[326511421,1715032244172,-549.35,0.00016438,2]